Cogmind - Beta 17 @@@ ROGUE MODE // 2026.06.26 @ 10:49:35 Player: Dull Result: Destroyed by W0-HAR(E) with Barrage Gun Performance ------------- Evolutions (0) 0 Regions Visited (4) 800 Robots Destroyed (38) 190 Value Destroyed (1058) 1058 Prototype IDs (54) 1080 Alien Tech Used (0) 0 Bonus (785) 785 TOTAL SCORE: 3913 Bonus ------- Registered with UFD 300 Met Optimus in HQ 500 Friendly Fire -15 Cogmind --------- Core Integrity 0/250 Matter 280/300 Energy 146/150 System Corruption 0% Temperature Cool (3) Movement Walking (130) Location -9/Scraptown Parts ------- > --- POWER (1) -------- Micro Fission Core (fused) > --- PROPULSION (2) --- Cargo Legs > --- UTILITY (2+2) ---- High-capacity Storage Unit (+) Experimental Sensor Array Signal Interpreter A0-MCA's Component Scanner (+) > --- WEAPON (2) ------- Precision Assault Rifle (fused) Heavy Machine Gun (fused) > --- INVENTORY (20) --- Improved Deuterium Engine Improved Carbon-fiber Leg Improved Carbon-fiber Leg Overtuned Flexi-carbon Leg Overtuned Flexi-carbon Leg Overtuned Scrapsphere Overtuned Huge Scrapsphere Overtuned Huge Scrapsphere Scrap Suit Medium Armor Plating Medium Armor Plating Medium Armor Plating Medium Armor Plating Medium Armor Plating Mini Grenade Launcher CPS Tube (2) Great Axe Peak State ------------ > --- POWER ------------ Micro Fission Core > --- PROPULSION ------- Cargo Legs > --- UTILITY ---------- High-capacity Storage Unit Experimental Sensor Array Signal Interpreter A0-MCA's Component Scanner > --- WEAPON ----------- Precision Assault Rifle Heavy Machine Gun > --- INVENTORY -------- Improved Deuterium Engine Improved Carbon-fiber Leg Improved Carbon-fiber Leg Overtuned Flexi-carbon Leg Overtuned Flexi-carbon Leg Overtuned Scrapsphere Overtuned Huge Scrapsphere Overtuned Huge Scrapsphere Large Storage Unit Medium Armor Plating Medium Armor Plating Medium Armor Plating Medium Armor Plating Medium Armor Plating Assault Rifle Mini Grenade Launcher CPS Tube Great Axe [Rating: 59] Favorites ----------- Power Micro Fission Core Engine Ion Engine Power Core Micro Fission Core Reactor Antimatter Reactor Propulsion Light Treads Treads Light Treads Leg Cargo Legs Wheel Armored Wheel Hover Unit Aerolev Unit Flight Unit VTOL Module Utility High-capacity Storage Unit Device Self-contained Transmogrifier Storage High-capacity Storage Unit Processor A0-MCA's Component Scanner Protection Scrap Shield Weapon Assault Rifle Energy Gun Tesla Rifle Energy Cannon Proton Cannon Ballistic Gun Assault Rifle Ballistic Cannon Bore Cannon Launcher Rocket Launcher Impact Weapon Heavy Flail Build | -11 -10 -10 -9 -9 ------- Run | Yrd Mat Sub Rec Scr Slots Evolved . | . . . . . Power . | . . . . . Propulsion . | . . . . . Utility . | . . . . . Weapon . | . . . . . Parts Attached 28 | . 10 12 2 4 Power 4 | . 1 2 1 . Engine 4 | . 1 2 1 . Core . | . . . . . Reactor . | . . . . . Propulsion 7 | . 2 4 . 1 Treads 2 | . 2 . . . Leg 1 | . . . . 1 Wheel 4 | . . 4 . . Hover . | . . . . . Flight . | . . . . . Utility 10 | . 5 2 . 3 Device 3 | . 1 1 . 1 Storage 2 | . 2 . . . Processor 2 | . . . . 2 Hackware . | . . . . . Protection 3 | . 2 1 . . Artifact . | . . . . . Weapon 7 | . 2 4 1 . Energy Gun . | . . . . . Energy Cannon . | . . . . . Ballistic Gun 5 | . 1 4 . . Ballistic Cannon . | . . . . . Launcher 2 | . 1 . 1 . Special Weapon . | . . . . . Impact Weapon . | . . . . . Slashing Weapon . | . . . . . Piercing Weapon . | . . . . . Special Melee Weapon . | . . . . . Unidentified Prototypes 1 | . . 1 . . Parts Lost 5 | . 1 3 1 . Power 2 | . . 1 1 . Propulsion 1 | . . 1 . . Utility 1 | . 1 . . . Weapon 1 | . . 1 . . Highest Loss Streak 1 | . 1 1 1 . To Critical Strikes 1 | . . 1 . . Average Backups 14 | . 13 10 12 16 Power . | . 1 . . 1 Propulsion 2 | . 3 2 1 2 Utility 6 | . 2 5 8 8 Weapon 3 | . 5 2 3 3 Tool/Special . | . . . . . Unused Backups 29 | . 3 4 . 22 Power 4 | . 1 1 . 2 Propulsion 10 | . . 3 . 7 Utility 9 | . 1 . . 8 Weapon 5 | . 1 . . 4 Tool/Special 1 | . . . . 1 Average Slot Usage (%) 91 | . 92 92 98 91 Engine 5 | . 14 7 12 . Core 6 | . . 3 . 10 Reactor 1 | . . . . 2 Treads 4 | . 27 . . . Leg 2 | . . 5 . 2 Wheel 3 | . . 9 12 . Hover 2 | . . 7 . . Flight 13 | . . 3 15 21 Device 7 | . 1 9 14 8 Storage 12 | . 14 10 14 13 Processor 1 | . . . . 2 Protection 2 | . 5 4 . 1 Energy Gun 5 | . . 2 5 7 Energy Cannon 1 | . . . . 1 Ballistic Gun 15 | . 27 10 . 14 Impact Weapon 5 | . . 14 11 1 Peak Build Rating 59 | . 9 33 29 59 Average Rating 29 | . 7 22 26 40 On Entrance 15 | 6 6 9 29 27 Avg Prop Armor Cover (%) 6 | . . 7 4 . Naked Turns . | . . . . . Heaviest Build 72 | 11 53 53 54 72 Greatest Support 55 | 20 40 40 24 55 Greatest Overweight (x) 7 | . 1 5 6 7 Average Overweight (x) 2 | . . 1 3 3 Largest Inventory Capacity 20 | . 20 20 20 20 Average Capacity 18 | . 15 15 20 19 Most Carried 20 | . 20 20 18 20 Average Carried 16 | . 13 13 17 19 Final Capacity 20 | 8 20 20 20 20 Final Carried 20 | 6 19 17 17 20 Transmogrified Parts 76 | . . 23 4 49 Integrity Recovered 498 | . . 342 30 126 Class Distribution -------------------- 100% | Mutant Dominant Class ---------------- Mutant | -10/Materials Mutant | -10/Subcaves Mutant | -9/Recycling Mutant | -9/Scraptown Resources | -11 -10 -10 -9 -9 ----------- Run | Yrd Mat Sub Rec Scr Matter Collected 1216 | 200 317 639 20 40 Remotely 64 | . 64 . . . Salvage Created 1429 | . 513 717 199 . Parts 81 | . 35 45 1 . Haulers Intercepted 2 | . 2 . . . Recyclers Shooed . | . . . . . Parts Field Recycled . | . . . . . Retrieved Matter . | . . . . . Parts Self-Destructed 11 | . . 10 . 1 Prevented . | . . . . . Parts Restored . | . . . . . Kills | -11 -10 -10 -9 -9 ------- Run | Yrd Mat Sub Rec Scr Combat Hostiles Destroyed 30 | . 12 17 1 . Melee 2 | . . 2 . . Guns 25 | . 12 13 . . Classes Destroyed 8 | . 4 3 1 . Hauler 2 | . 2 . . . Recycler 1 | . . . 1 . Turret 2 | . . 2 . . Watcher 3 | . 3 . . . Swarmer 9 | . 6 3 . . Grunt 6 | . 6 . . . Sentry 2 | . . 1 1 . Subdweller 13 | . . 13 . . Best Kill Streak 5 | . 4 5 2 . Combat Bots Only 3 | . 3 3 1 . Max Kills in Single Turn 1 | . 1 1 1 . Gunslinging . | . . . . . Exploded . | . . . . . Melee 1 | . . 1 . . Uniques/NPCs Destroyed . | . . . . . Combat | -11 -10 -10 -9 -9 -------- Run | Yrd Mat Sub Rec Scr Hostile Shots Fired 212 | . 56 139 9 8 Missed 55 | . 14 38 1 2 Hits 157 | . 42 101 8 6 Projectile 157 | . 42 101 8 6 AOE 4 | . . 4 . . Critical Strikes 5 | . 1 4 . . Damage Taken 2306 | . 490 1600 118 98 Core 257 | . 28 173 42 14 Absorbed by Shields . | . . . . . Regen/Repaired (Parts) 33 | . . . . 33 Core Remaining (%) 100 | 100 . . . . Volleys Fired 125 | . 44 81 . . Largest 2 | . 2 2 . . Hottest 45 | . 40 45 . . Shots Fired 239 | . 86 153 . . Gun 237 | . 84 153 . . Cannon . | . . . . . Launcher 2 | . 2 . . . Special . | . . . . . Kinetic 237 | . 84 153 . . Thermal . | . . . . . Explosive 2 | . 2 . . . Electromagnetic . | . . . . . Robot Hit Streak 13 | . 10 13 . . Robot Miss Streak 4 | . 4 3 . . Penetration Max . | . . . . . Secondary Targets 2 | . 1 1 . . Max Gunslinging Chain 1 | . 1 1 . . Shots Hit Robots 145 | . 53 83 9 . Core Hits 59 | . 27 31 1 . Critical Kills 1 | . . 1 . . Critical Parts Destroyed 2 | . . . 2 . Critical Strikes 4 | . . 1 3 . Smash 4 | . . 1 3 . Melee Attacks 38 | . . 28 10 . Impact 38 | . . 28 10 . Slashing . | . . . . . Piercing . | . . . . . Sneak Attacks 3 | . . . 3 . Combat Hostiles . | . . . . . Follow-up Attacks 2 | . . . 2 . Damage Inflicted 2856 | . 666 1586 604 . Guns 1666 | . 666 1000 . . Cannons . | . . . . . Explosions . | . . . . . Melee 1190 | . . 586 604 . Ramming . | . . . . . Kinetic 1666 | . 666 1000 . . Thermal . | . . . . . Explosive . | . . . . . Electromagnetic . | . . . . . Impact 1190 | . . 586 604 . Slashing . | . . . . . Piercing . | . . . . . Highest Corruption . | . . . . . Average Corruption . | . . . . . Corruption Purged . | . . . . . Corruption Blocked . | . . . . . Overload Shots . | . . . . . Overflow Damage 283 | . . 107 176 . Projectiles . | . . . . . Explosions . | . . . . . Melee 283 | . . 107 176 . Knockbacks 3 | . . 2 1 . Impact 3 | . . 2 1 . Kinetic . | . . . . . Secondary . | . . . . . Self-Inflicted Damage 31 | . 31 . . . Shots 1 | . 1 . . . Rammed . | . . . . . Targets Rammed . | . . . . . Kicked . | . . . . . Crushed . | . . . . . Highest Temperature 23 | . 23 . . . Average Temperature 9 | . 9 . . . Received Heat Transfer 636 | . 195 402 27 12 Siege Activations . | . . . . . Martial Activations . | . . . . . Shielding Activations . | . . . . . Robots Disrupted . | . . . . . Combat Hostiles . | . . . . . Robots Corrupted 5 | . . 3 2 . Combat Hostiles 3 | . . 2 1 . Parts Fried 7 | . . 4 3 . Impact Corruptions 14 | . . 5 9 . Robots Melted . | . . . . . Combat Hostiles . | . . . . . Parts Melted 1 | . . 1 . . Heat Transferred . | . . . . . Parts Sabotaged . | . . . . . Parts Stolen . | . . . . . Parts Stripped . | . . . . . Power Chain Reactions . | . . . . . Alert | -11 -10 -10 -9 -9 ------- Run | Yrd Mat Sub Rec Scr Maximum Alert Level . | . . . . . Low Security (%) 100 | . 100 . 100 . Level 1 . | . . . . . Level 2 . | . . . . . Level 3 . | . . . . . Level 4 . | . . . . . Level 5 . | . . . . . High Security . | . . . . . Max Security . | . . . . . Peak Influence 96 | . 62 . 96 . Initial 91 | . . . 91 . Average 13 | . 10 . 26 . Influence Increases 643 | . 388 225 30 . Destroy 0b10 Robot/C 380 | . 240 120 20 . Destroy 0b10 Robot/NC 35 | . 25 . 10 . Destroy Leader 70 | . 70 . . . Successful Hack 17 | . 17 . . . Disable Machine 15 | . 15 . . . Destroy Structure 21 | . 21 . . . Lose Combat Pursuer 105 | . . 105 . . Influence Decreases 643 | . 379 44 220 . Entered New Map 104 | . . 5 99 . Time Decay 509 | . 369 29 111 . Lost Part 30 | . 10 10 10 . Squads Dispatched 3 | . 3 . . . Investigation 2 | . 2 . . . Extermination . | . . . . . Reinforcement 1 | . 1 . . . Assault . | . . . . . Garrison . | . . . . . Intercept . | . . . . . Searches Triggered . | . . . . . Construction Impeded . | . . . . . Haulers Reinforced . | . . . . . Active Scanning Responses . | . . . . . Cargo Convoy Interrupts . | . . . . . Stealth | -11 -10 -10 -9 -9 --------- Run | Yrd Mat Sub Rec Scr Distress Signals 2 | . 2 . . . Communications Jammed . | . . . . . Distress Signals . | . . . . . Times Spotted 48 | . 18 23 1 6 Peak Tracking Total 6 | . 3 6 1 4 Tactical Retreats 2 | . . 2 . . Traps | -11 -10 -10 -9 -9 ------- Run | Yrd Mat Sub Rec Scr Traps Triggered 3 | . 2 1 . . Indirectly . | . . . . . Trap Hack Attempts . | . . . . . Triggered . | . . . . . Disarmed . | . . . . . Reprogrammed . | . . . . . Reused . | . . . . . Traps Extracted . | . . . . . Installed . | . . . . . Triggered . | . . . . . Machines | -11 -10 -10 -9 -9 ---------- Run | Yrd Mat Sub Rec Scr Machines Disabled 2 | . 1 1 . . Max in Single Turn 1 | . 1 1 . . Machines Repaired . | . . . . . Machines Dismantled . | . . . . . Machines Sabotaged . | . . . . . Overloaded Fab Kills . | . . . . . Hacking | -11 -10 -10 -9 -9 --------- Run | Yrd Mat Sub Rec Scr Machines Accessed 14 | . 7 1 3 3 Terminals 7 | . 6 . 1 . Fabricators . | . . . . . Repair Stations 1 | . 1 . . . Recycling Units . | . . . . . Scanalyzers . | . . . . . Garrison Access . | . . . . . Total Hacks 74 | . 18 9 27 20 Successful 63 | . 9 9 25 20 Failed 11 | . 9 . 2 . Catastrophic 2 | . 1 . 1 . Database Lockouts . | . . . . . Manual . | . . . . . Terminals 17 | . 15 . 2 . Fabricators . | . . . . . Repair Stations 3 | . 3 . . . Recycling Units . | . . . . . Scanalyzers . | . . . . . Garrison Access . | . . . . . Terminal Hacks 62 | . 8 9 25 20 Record 52 | . 1 8 24 19 Prototype ID Bank 1 | . 1 . . . Alert Level 1 | . 1 . . . Locate Traps 2 | . 2 . . . Dispatch Records 1 | . 1 . . . Investigation Status 1 | . 1 . . . Recall Investigation 1 | . 1 . . . Proto ID Catalog 2 | . . 1 . 1 Release Object 1 | . . . 1 . Fabricator Hacks . | . . . . . Repair Station Hacks 1 | . 1 . . . Scan Component 1 | . 1 . . . Recycling Unit Hacks . | . . . . . Scanalyzer . | . . . . . Garrison Access Hacks . | . . . . . Unauthorized Hacks . | . . . . . Terminals . | . . . . . Fabricators . | . . . . . Repair Stations . | . . . . . Recycling Units . | . . . . . Scanalyzers . | . . . . . Garrison Access . | . . . . . Data Cores Recovered . | . . . . . Used . | . . . . . Hacking Detections 6 | . 5 . 1 . Full Trace Events 1 | . 1 . . . Feedback Events . | . . . . . Feedback Blocked . | . . . . . Robot Schematics Acquired . | . . . . . Robots Built . | . . . . . Authchips . | . . . . . Time . | . . . . . Total Robot Build Rating . | . . . . . Part Schematics Acquired . | . . . . . Parts Built . | . . . . . Authchips . | . . . . . Time . | . . . . . Total Part Build Rating . | . . . . . Part Studies Acquired . | . . . . . Parts Repaired . | . . . . . Time . | . . . . . Parts Recycled . | . . . . . Recycled Matter . | . . . . . Retrieved Matter . | . . . . . Retrieved Components . | . . . . . Parts Scanalyzed . | . . . . . Part Schematics Acquired . | . . . . . Parts Damaged . | . . . . . Bothacking | -11 -10 -10 -9 -9 ------------ Run | Yrd Mat Sub Rec Scr Used RIF Installer . | . . . . . Robots Hacked . | . . . . . Non-combat . | . . . . . Combat . | . . . . . Robot Hacks Applied . | . . . . . Relay Couplers Released . | . . . . . Fabnet Peak Effective % . | . . . . . Robots Rewired . | . . . . . Allies Hacked . | . . . . . Hacks Repelled . | . . . . . Allies | -11 -10 -10 -9 -9 -------- Run | Yrd Mat Sub Rec Scr Total Allies . | . . . . . Largest Group . | . . . . . Highest-Rated Group . | . . . . . Highest-Rated Ally . | . . . . . Total Orders . | . . . . . Ally Attacks . | . . . . . Total Damage . | . . . . . Kills . | . . . . . Allies Corrupted . | . . . . . Allies Melted 1 | . . . . 1 Intel | -11 -10 -10 -9 -9 ------- Run | Yrd Mat Sub Rec Scr Active Infowar (turns) 622 | . . . . 622 Sensors 622 | . . . . 622 Robot Analysis Total . | . . . . . Derelict Logs Recovered 1 | . . . . 1 Drone Launches . | . . . . . Drone Recoveries . | . . . . . Exploration | -11 -10 -10 -9 -9 ------------- Run | Yrd Mat Sub Rec Scr Turns Passed 14550 | . 2274 3941 470 7865 Spaces Moved 5837 | 1 1001 1989 215 2631 Core . | . . . . . Treads 1007 | . 999 8 . . Legs 1424 | 1 2 373 . 1048 Wheels 1312 | . . 1139 173 . Hover 469 | . . 469 . . Flight 1625 | . . . 42 1583 Fastest Speed 90 | 120 120 90 105 130 Average Speed 233 | 120 191 174 204 296 Slowest Speed 622 | 120 240 450 512 622 Overloaded Moves . | . . . . . Propulsion Burnouts . | . . . . . Robots Hopped . | . . . . . Potential Cave-ins . | . . . . . Cave-ins Triggered . | . . . . . Exploration Rate (%) 61 | 2 99 68 43 94 Regions Visited 4 Branch Regions 3 Pre-discovered Areas . | . . . . . Known Exits Taken . | . . . . . Unknown Exits Taken 4 | 1 1 1 1 . Scrap Searched 9 | . . 4 . 5 Spaces Dug 6 | . 6 . . . Terrain Destroyed 17 | . 17 . . . Melee . | . . . . . Projectile . | . . . . . AOE 17 | . 17 . . . Terrain Rammed . | . . . . . Walls Destroyed . | . . . . . Machines Disabled . | . . . . . Actions | -11 -10 -10 -9 -9 --------- Run | Yrd Mat Sub Rec Scr Total 6481 | . 1272 2274 236 2699 Wait 322 | . 188 111 9 14 Move 5833 | . 1000 1988 214 2631 Hop . | . . . . . Pick Up 77 | . 20 22 2 33 Fast Attach 5 | . 3 1 . 1 Attach 24 | . 6 11 2 5 Detach . | . . . . . Swap 3 | . 2 1 . . Drop 41 | . 9 16 1 15 Fire 125 | . 44 81 . . Melee 33 | . . 25 8 . Ram . | . . . . . Kick . | . . . . . Crush . | . . . . . Escape Stasis . | . . . . . Rewire 2 | . . 2 . . Trap . | . . . . . Miscellaneous 16 | . . 16 . . Route ------- -11/Scrapyard -10/Materials (discovered 6 exits: [*Mat x3] / [*Min x2] / *Sub) -10/Subcaves (discovered 2 exits: [*Mat] / *Rec) -9/Recycling -9/Scraptown (discovered 2 exits: [*Fac x2]) History --------- Turn | Location | Event 1 | -11/Scrapyard | Discovered new exit (range 0) 1 | -11/Scrapyard | Entered Materials 338 | -10/Materials | Build established: Mutant 444 | -10/Materials | Discovered new exit (range 9) 821 | -10/Materials | Discovered new exit (range 5) 1308 | -10/Materials | Discovered new exit (range 15) 1522 | -10/Materials | Discovered new exit (range 10) 1593 | -10/Materials | Discovered new exit (range 7) 2189 | -10/Materials | Discovered new exit (range 14) 2275 | -10/Materials | Entered Subcaves 2276 | -10/Subcaves | Approached by a straggling Scientist 2392 | -10/Subcaves | Ambushed by swarm of Subdwellers 2800 | -10/Subcaves | Discovered new exit (range 5) 3376 | -10/Subcaves | Visited 4L-MR0's lab 3403 | -10/Subcaves | Found Prototype Device 3405 | -10/Subcaves | Identified Sfc. Transmogrifier 4769 | -10/Subcaves | Found Cargo Legs 6138 | -10/Subcaves | Core integrity fell below 50% 6164 | -10/Subcaves | Discovered new exit (range 8) 6177 | -10/Subcaves | Core integrity fell below 20% 6216 | -10/Subcaves | Entered Recycling 6553 | -9/Recycling | Scanned before Scraplab entrance 6630 | -9/Recycling | Entered Scraplab 6676 | -9/Recycling | Discovered new exit (range 3) 6686 | -9/Recycling | Entered Scraptown 8180 | -9/Scraptown | Visited SPCMW 8408 | -9/Scraptown | Visited TADAMA 9423 | -9/Scraptown | Visited IN-MT5's Study 9512 | -9/Scraptown | Visited Comm Corps 9989 | -9/Scraptown | Scanned Subdweller tech in exchange for log data 9999 | -9/Scraptown | Learned Factory terminal intel 10110 | -9/Scraptown | Discovered new exit (range 5) 10510 | -9/Scraptown | Visited Awakened 10618 | -9/Scraptown | Visited Cyclists 10880 | -9/Scraptown | Visited CR-KLE's Repair Center 10906 | -9/Scraptown | CR-KLE repaired 1 part 10990 | -9/Scraptown | Visited UFD Registry 10990 | -9/Scraptown | Registered with UFD as "Prototail" 12862 | -9/Scraptown | Attached Cargo Legs, gained temporary slots: Utility x2 13398 | -9/Scraptown | Visited Chapter 10 13490 | -9/Scraptown | Visited A0-MCA Data Center 13502 | -9/Scraptown | Given a B+ rating by A0-MCA 13506 | -9/Scraptown | Found A0-MCA's Component Scanner 13544 | -9/Scraptown | Visited Observation Area 13688 | -9/Scraptown | Delivered Scrap Shield to a Scientist 13845 | -9/Scraptown | Visited Science Guys 13918 | -9/Scraptown | Visited Infowarlord's Domain 13928 | -9/Scraptown | Found Exp. Sensor Array 13952 | -9/Scraptown | Visited Research Penetration Think Tank 13980 | -9/Scraptown | Visited Modified Component R&D 14119 | -9/Scraptown | Discovered new exit (range 5) 14150 | -9/Scraptown | Found Scrap Suit 14229 | -9/Scraptown | Visited Junk Repository 14257 | -9/Scraptown | Visited LU-1G1's Boring Crew 14287 | -9/Scraptown | Visited Cartography Club 14425 | -9/Scraptown | Met Optimus 14425 | -9/Scraptown | Accepted into 0bPrime 14536 | -9/Scraptown | Civil war broke out across Scraptown 14551 | -9/Scraptown | Destroyed by W0-HAR(E) with Barrage Gun Last Messages --------------- 14536_ 0BP_ANNOUNCE: There is another choice, join 0bPrime! Our vision ensures independence and glory for all Derelicts! 14536_ ANNOUNCEMENT: Sever that connection! 14536_ 0BP_ANNOUNCE: We are one. To vict-- 14536_ Slug penetrates 30-G5L(g). 14538_ Optimus: "Bah, right when we're so close. Don't worry Prototail, they can't stop us now. Get out of here and do your job, we'll deal with this." 14539_ ZG-DLO(z) destroyed. 14540_ Optimus: "No holds barred, if they're hostile, they are an enemy of the people and we must shoot to kill. Collateral damage is to be expected!" 14545_ Penetrated by Bolt. 14546_ VB-BFE(E) suffers critical hit (Burn). 14550_ M8-46W(j) suffers critical hit (Destroy). 14551_ Bolt penetrates VB-BFE(E). 14551_ 6Y-JAB(h) destroyed. Map ----- +----------------------------------------------------+ | | | | | | | | | | | | | | | | | | | ?????????????????????????????????????????????????? | | ?????????????????????????????????????????????????? | | ?????????????????????????????????????????????????? | | ?????????????????????????????????????????????????? | | ?????????????????????????????????????????????????? | | ?????????????????????????????????????????????????? | | ?????????????????????????????????????????????????? | | ?????????????????????????????????????????????????? | | ?????????????????????????????????????????????????? | | ?????????????????????????????????????????????????? | | ?????????????????????????????????????????????????? | | ??????????????????????????????#####??????????????? | | ??????????????????????????????#"""#??????????????? | | ##################???####?????#"x"#??????????????? | | ""##"""##""|##"""#??## ##????#x